fUSD/lending_fUSD_20250930
["ID","MTS","AMOUNT","RATE_DAILY","PERIOD"]
[388505946,1759222256013,-3359.51,0.00019899,2]
[388505947,1759222256022,-736.92,0.00019899,2]
[388505948,1759222256031,-500.0,0.00019899,2]
[388505949,1759222256040,-500.0,0.00019899,2]
[388505950,1759222256052,-800.87,0.00019899,2]
[388505951,1759222256062,-2808.85,0.00019899,2]
[388505952,1759222256072,-524.5,0.00019899,2]
[388505953,1759222256081,-3314.87,0.00019899,2]
[388505954,1759222256093,-1083.67,0.00019899,2]
[388505955,1759222256102,-3371.13,0.00019899,2]
[388505956,1759222256112,-1405.22,0.00019899,2]
[388505957,1759222256121,-512.22,0.00019899,2]
[388505958,1759222256134,-1173.58,0.00019899,2]
[388505959,1759222256143,-500.0,0.00019899,2]
[388505960,1759222256152,-772.31,0.00019899,2]
[388505961,1759222256161,-500.0,0.00019899,2]
[388505962,1759222256171,-2203.31,0.00019899,2]
[388505963,1759222256180,-500.0,0.00019899,2]
[388505964,1759222256191,-500.0,0.00019899,2]
[388505965,1759222256200,-1664.31,0.00019899,2]
[388505966,1759222256209,-500.0,0.00019899,2]
[388505967,1759222256219,-500.0,0.00019899,2]
[388505968,1759222256228,-3443.87,0.00019899,2]
[388505969,1759222256237,-2401.0,0.00019899,2]
[388505970,1759222256248,-500.0,0.00019899,2]
[388505971,1759222256257,-500.0,0.00019899,2]
[388505972,1759222256265,-500.0,0.00019899,2]
[388505973,1759222256274,-500.0,0.00019899,2]
[388505974,1759222256284,-1578.95,0.00019899,2]
[388505975,1759222256293,-500.0,0.00019899,2]
[388505976,1759222256303,-1031.22,0.00019899,2]
[388505977,1759222256313,-828.8,0.00019899,2]
[388505978,1759222256322,-2673.7,0.00019899,2]
[388505979,1759222256331,-531.53,0.00019899,2]
[388505980,1759222256340,-500.0,0.00019899,2]
[388505981,1759222256350,-500.0,0.00019899,2]
[388505982,1759222256359,-500.0,0.00019899,2]
[388505983,1759222256368,-789.69,0.00019899,2]
[388505984,1759222256378,-869.81,0.00019899,2]
[388505985,1759222256388,-1299.77,0.00019899,2]
[388505986,1759222256397,-500.0,0.00019899,2]
[388505987,1759222256406,-500.0,0.00019899,2]
[388505988,1759222256416,-609.44,0.00019899,2]
[388505989,1759222256425,-500.0,0.00019899,2]
[388505990,1759222256434,-500.0,0.00019899,2]
[388505991,1759222256443,-1336.69,0.00019899,2]
[388505992,1759222256453,-500.0,0.00019899,2]
[388505993,1759222256462,-500.0,0.00019899,2]
[388505994,1759222256471,-500.0,0.00019899,2]
[388505995,1759222256481,-1396.85,0.00019899,2]
[388505996,1759222256489,-500.0,0.00019899,2]
[388505997,1759222256498,-647.37,0.00019899,2]
[388505998,1759222256508,-2364.5,0.00019899,2]
[388505999,1759222256517,-500.0,0.00019899,2]
[388506000,1759222256526,-2254.25,0.00019899,2]
[388506001,1759222256534,-500.0,0.00019899,2]
[388506002,1759222256543,-500.0,0.00019899,2]
[388506003,1759222256553,-518.07,0.00019899,2]
[388506004,1759222256562,-500.0,0.00019899,2]
[388506005,1759222256571,-500.0,0.00019899,2]
[388506006,1759222256580,-552.02,0.00019899,2]
[388506007,1759222256589,-500.0,0.00019899,2]
[388506008,1759222256598,-500.0,0.00019899,2]
[388506009,1759222256607,-1058.06,0.00019899,2]
[388506010,1759222256617,-500.0,0.00019899,2]
[388506011,1759222256625,-1934.59,0.00019899,2]
[388506012,1759222256635,-500.0,0.00019899,2]
[388506013,1759222256645,-500.0,0.00019899,2]
[388506014,1759222256655,-1782.26,0.00019899,2]
[388506015,1759222256664,-972.15,0.00019899,2]
[388506016,1759222256673,-1630.05,0.00019899,2]
[388506017,1759222256682,-500.0,0.00019899,2]
[388506018,1759222256691,-500.0,0.00019899,2]
[388506019,1759222256700,-500.0,0.00019899,2]
[388506020,1759222256709,-560.2,0.00019899,2]
[388506021,1759222256718,-540.47,0.00019899,2]
[388506022,1759222256727,-965.92,0.00019899,2]
[388506023,1759222256737,-500.0,0.00019899,2]
[388506024,1759222256750,-797.86,0.00019899,2]
[388506025,1759222256759,-1008.89,0.00019899,2]
[388506026,1759222256769,-1106.14,0.00019899,2]
[388506027,1759222256778,-1689.47,0.00019899,2]
[388506028,1759222256791,-500.0,0.00019899,2]
[388506029,1759222256800,-500.0,0.00019899,2]
[388506030,1759222256810,-588.28,0.00019899,2]
[388506031,1759222256820,-585.86,0.00019899,2]
[388506032,1759222256828,-500.0,0.00019899,2]
[388506033,1759222256837,-1305.53,0.00019899,2]
[388506034,1759222256846,-1050.89,0.00019899,2]
[388506035,1759222256855,-1346.86,0.00019899,2]
[388506036,1759222256865,-500.0,0.00019899,2]
[388506037,1759222256874,-500.0,0.00019899,2]
[388506038,1759222256883,-500.0,0.00019899,2]
[388506039,1759222256892,-500.0,0.00019899,2]
[388506040,1759222256901,-500.0,0.00019899,2]
[388506041,1759222256910,-500.0,0.00019899,2]
[388506042,1759222256919,-3323.27,0.00019899,2]
[388506043,1759222256928,-500.0,0.00019899,2]
[388506044,1759222256937,-500.0,0.00019899,2]
[388506045,1759222256946,-559.1,0.00019899,2]
[388506046,1759222257394,-500.0,0.00019899,2]
[388506047,1759222257424,-150.0,0.000199,2]
[388506048,1759222257434,-300.0,0.000199,7]
[388506049,1759222257444,-200.66147198,0.000199,2]
[388506050,1759222257453,-186.65786089,0.000199,3]
[388506051,1759222257463,-1586.51376682,0.000199,2]
[388506052,1759222257472,-3080.41267582,0.000199,2]
[388506053,1759222257481,-1931.35776489,0.000199,2]
[388506054,1759222257491,-1893.01352296,0.000199,2]
[388506055,1759222257500,-166.64259398,0.00019946,2]
[388506056,1759222257510,-500.0,0.00019973,2]
[388506057,1759222257519,-150.0,0.00019973,4]
[388506058,1759222257528,-150.0,0.00019973,4]
[388506059,1759222257537,-150.0,0.00019973,4]
[388506060,1759222257547,-150.0,0.00019973,4]
[388506061,1759222257557,-150.0,0.00019973,4]
[388506062,1759222257566,-150.0,0.00019973,4]
[388506063,1759222257575,-500.0,0.00019973,2]
[388506064,1759222257585,-372.59402105,0.00019973,2]
[388506065,1759222257594,-500.0,0.00019973,2]
[388506066,1759222257603,-500.0,0.00019973,2]
[388506067,1759222257612,-519.33476992,0.00019973,2]
[388506068,1759222257621,-503.10082397,0.00019973,2]
[388506069,1759222257630,-500.0,0.00019973,2]
[388506070,1759222257640,-500.0,0.00019973,2]
[388506071,1759222257650,-445.35979445,0.00019973,2]
[388506072,1759222257660,-500.0,0.00019973,2]
[388506073,1759222257669,-200.0,0.00019975,2]
[388506074,1759222257678,-763.25364845,0.00019985,2]
[388506075,1759222257687,-159.67638571,0.00019988,2]
[388506076,1759222257696,-1003.0,0.00019991,2]
[388506077,1759222257706,-1313.79,0.00019993,2]
[388506078,1759222257715,-2993.72,0.00019993,2]
[388506079,1759222257725,-3413.38,0.00019993,2]
[388506080,1759222257734,-2475.84,0.00019993,2]
[388506081,1759222257748,-2475.84,0.00019993,2]
[388506082,1759222257758,-590.79,0.00019993,2]
[388506083,1759222257767,-1058.06,0.00019993,2]
[388506084,1759222257778,-1050.89,0.00019993,2]
[388506085,1759222257787,-500.0,0.00019994,2]
[388506086,1759222257797,-500.0,0.00019994,2]
[388506087,1759222257806,-500.0,0.00019994,2]
[388506088,1759222257816,-570.32,0.00019994,2]
[388506089,1759222257826,-1271.2,0.00019994,2]
[388506090,1759222257835,-500.0,0.00019994,2]
[388506091,1759222257844,-591.35,0.00019994,2]
[388506092,1759222257853,-500.0,0.00019994,2]
[388506093,1759222257863,-814.45,0.00019994,2]
[388506094,1759222257872,-816.93,0.00019994,2]
[388506095,1759222257882,-909.31,0.00019994,2]
[388506096,1759222257894,-500.0,0.00019994,2]
[388506097,1759222257904,-500.0,0.00019994,2]
[388506098,1759222257913,-954.33,0.00019994,2]
[388506099,1759222257923,-1313.79,0.00019994,2]
[388506100,1759222257932,-1313.79,0.00019994,2]
[388506101,1759222257941,-1313.79,0.00019994,2]
[388506102,1759222257950,-1309.0,0.00019994,2]
[388506103,1759222257960,-560.68,0.00019994,2]
[388506104,1759222257970,-2993.72,0.00019994,2]
[388506105,1759222257979,-2993.72,0.00019994,2]
[388506106,1759222257989,-2993.72,0.00019994,2]
[388506107,1759222257999,-588.03,0.00019994,2]
[388506108,1759222258008,-500.0,0.00019994,2]
[388506109,1759222258018,-3413.38,0.00019994,2]
[388506110,1759222258027,-3413.38,0.00019994,2]
[388506111,1759222258037,-3413.38,0.00019994,2]
[388506112,1759222258048,-500.0,0.00019994,2]
[388506113,1759222258058,-2475.84,0.00019994,2]
[388506114,1759222258068,-2475.84,0.00019994,2]
[388506115,1759222258078,-590.79,0.00019994,2]
[388506116,1759222258087,-4942.41,0.00019994,2]
[388506117,1759222258096,-1058.06,0.00019994,2]
[388506118,1759222258106,-1058.06,0.00019994,2]
[388506119,1759222258115,-1058.06,0.00019994,2]
[388506120,1759222258124,-1050.89,0.00019994,2]
[388506121,1759222258135,-1050.89,0.00019994,2]
[388506122,1759222258144,-1050.89,0.00019994,2]
[388506123,1759222258154,-500.0,0.00019994,2]
[388506124,1759222258163,-500.0,0.00019994,2]
[388506125,1759222258173,-500.0,0.00019995,2]
[388506126,1759222258182,-500.0,0.00019995,2]
[388506127,1759222258191,-500.0,0.00019995,2]
[388506128,1759222258200,-450.57643129,0.00019995,2]
[388506129,1759222258210,-500.0,0.00019995,2]
[388506130,1759222258219,-500.0,0.00019995,2]
[388506131,1759222258229,-500.0,0.00019995,2]
[388506132,1759222258239,-500.0,0.00019995,2]
[388506133,1759222258248,-500.0,0.00019995,2]
[388506134,1759222258259,-500.0,0.00019995,2]
[388506135,1759222258268,-500.0,0.00019995,2]
[388506136,1759222258277,-500.0,0.00019995,2]
[388506137,1759222258287,-500.0,0.00019995,2]
[388506138,1759222258296,-500.0,0.00019995,2]
[388506139,1759222258305,-500.0,0.00019995,2]
[388506140,1759222258314,-500.0,0.00019995,2]
[388506141,1759222258324,-500.0,0.00019995,2]
[388506142,1759222258333,-500.0,0.00019995,2]
[388506143,1759222258343,-500.0,0.00019995,2]
[388506144,1759222258352,-500.0,0.00019995,2]
[388506145,1759222258361,-500.0,0.00019995,2]
[388506146,1759222258372,-500.0,0.00019995,2]
[388506147,1759222258381,-500.0,0.00019995,2]
[388506148,1759222258394,-500.0,0.00019995,2]
[388506149,1759222258405,-500.0,0.00019995,2]
[388506150,1759222258417,-500.0,0.00019995,2]
[388506151,1759222258427,-500.0,0.00019995,2]
[388506152,1759222258437,-500.0,0.00019995,2]
[388506153,1759222258447,-500.0,0.00019995,2]
[388506154,1759222258457,-500.0,0.00019995,2]
[388506155,1759222258467,-500.0,0.00019995,2]
[388506156,1759222258476,-500.0,0.00019995,2]
[388506157,1759222258486,-500.0,0.00019995,2]
[388506158,1759222258495,-500.0,0.00019995,2]
[388506159,1759222258504,-500.0,0.00019995,2]
[388506160,1759222258514,-500.0,0.00019995,2]
[388506161,1759222258524,-500.0,0.00019995,2]
[388506162,1759222258534,-500.0,0.00019995,2]
[388506163,1759222258543,-500.0,0.00019995,2]
[388506164,1759222258552,-500.0,0.00019995,2]
[388506165,1759222258562,-500.0,0.00019995,2]
[388506166,1759222258571,-500.0,0.00019995,2]
[388506167,1759222258580,-500.0,0.00019995,2]
[388506168,1759222258589,-500.0,0.00019995,2]
[388506169,1759222258598,-500.0,0.00019995,2]
[388506170,1759222258608,-500.0,0.00019995,2]
[388506171,1759222258617,-500.0,0.00019995,2]
[388506172,1759222258627,-302.2642663,0.00019995,2]
[388506173,1759222258637,-500.0,0.00019995,2]
[388506174,1759222258647,-500.0,0.00019995,2]
[388506175,1759222258656,-168.7168492,0.00019995,2]
[388506176,1759222258665,-500.0,0.00019995,2]
[388506177,1759222258674,-500.0,0.00019995,2]
[388506178,1759222258684,-1313.79,0.00019995,2]
[388506179,1759222258693,-1313.79,0.00019995,2]
[388506180,1759222258702,-500.0,0.00019995,2]
[388506181,1759222258712,-304.12401406,0.00019995,2]
[388506182,1759222258721,-500.0,0.00019995,2]
[388506183,1759222258730,-500.0,0.00019995,2]
[388506184,1759222258742,-500.0,0.00019995,2]
[388506185,1759222258752,-500.0,0.00019995,2]
[388506186,1759222258762,-500.0,0.00019995,2]
[388506187,1759222258771,-500.0,0.00019995,2]
[388506188,1759222258780,-300.0,0.00019995,2]
[388506189,1759222258791,-2993.72,0.00019995,2]
[388506190,1759222258800,-2993.72,0.00019995,2]
[388506191,1759222258810,-500.0,0.00019995,2]
[388506192,1759222258822,-500.0,0.00019995,2]
[388506193,1759222258831,-500.0,0.00019995,2]
[388506194,1759222258840,-500.0,0.00019995,2]
[388506195,1759222258850,-500.0,0.00019995,2]
[388506196,1759222258859,-500.0,0.00019995,2]
[388506197,1759222258869,-500.0,0.00019995,2]
[388506198,1759222258878,-284.04692083,0.00019995,2]
[388506199,1759222258888,-500.0,0.00019995,2]
[388506200,1759222258898,-500.0,0.00019995,2]
[388506201,1759222258907,-500.0,0.00019995,2]
[388506202,1759222258916,-500.0,0.00019995,2]
[388506203,1759222258925,-500.0,0.00019995,2]
[388506204,1759222258934,-500.0,0.00019995,2]
[388506205,1759222258943,-500.0,0.00019995,2]
[388506206,1759222258952,-3413.38,0.00019995,2]
[388506207,1759222258961,-3413.38,0.00019995,2]
[388506208,1759222258970,-500.0,0.00019995,2]
[388506209,1759222258979,-500.0,0.00019995,2]
[388506210,1759222258990,-500.0,0.00019995,2]
[388506211,1759222258999,-500.0,0.00019995,2]
[388506212,1759222259008,-500.0,0.00019995,2]
[388506213,1759222259017,-500.0,0.00019995,2]
[388506214,1759222259026,-500.0,0.00019995,2]
[388506215,1759222259035,-500.0,0.00019995,2]
[388506216,1759222259044,-500.0,0.00019995,2]
[388506217,1759222259054,-500.0,0.00019995,2]
[388506218,1759222259063,-500.0,0.00019995,2]
[388506219,1759222259072,-301.83455136,0.00019995,2]
[388506220,1759222259082,-500.0,0.00019995,2]
[388506221,1759222259091,-500.0,0.00019995,2]
[388506222,1759222259101,-500.0,0.00019995,2]
[388506223,1759222259110,-615.1054633,0.00019995,2]
[388506224,1759222259120,-2502.41,0.00019995,2]
[388506225,1759222259129,-500.0,0.00019995,2]
[388506226,1759222259139,-500.0,0.00019995,2]
[388506227,1759222259148,-946.71,0.00019995,2]
[388506228,1759222259156,-500.0,0.00019995,2]
[388506229,1759222259165,-2069.96,0.00019995,2]
[388506230,1759222259174,-5516.6,0.00019995,2]
[388506231,1759222259184,-500.0,0.00019995,2]
[388506232,1759222259193,-500.0,0.00019995,2]
[388506233,1759222259203,-184.81975484,0.00019995,2]
[388506234,1759222259212,-500.0,0.00019995,2]
[388506235,1759222259221,-280.18480035,0.00019995,2]
[388506236,1759222259232,-500.0,0.00019995,2]
[388506237,1759222259241,-500.0,0.00019995,2]
[388506238,1759222259250,-500.0,0.00019995,2]
[388506239,1759222259260,-500.0,0.00019995,2]
[388506240,1759222259269,-500.0,0.00019995,2]
[388506241,1759222259279,-500.0,0.00019995,2]
[388506242,1759222259288,-641.67566843,0.00019995,2]
[388506243,1759222259297,-4727.01,0.00019995,2]
[388506244,1759222259306,-929.34,0.00019995,2]
[388506245,1759222259316,-500.0,0.00019995,2]
[388506246,1759222259326,-500.0,0.00019995,2]
[388506247,1759222259335,-4525.43,0.00019995,2]
[388506248,1759222259344,-3229.63,0.00019995,2]
[388506249,1759222259353,-500.0,0.00019995,2]
[388506250,1759222259363,-500.0,0.00019995,2]
[388506251,1759222259371,-5232.34,0.00019995,2]
[388506252,1759222259381,-4027.97,0.00019995,2]
[388506253,1759222259391,-500.0,0.00019995,2]
[388506254,1759222259401,-3269.36,0.00019995,2]
[388506255,1759222259410,-500.0,0.00019995,2]
[388506256,1759222259420,-2807.45,0.00019995,2]
[388506257,1759222259430,-500.0,0.00019995,2]
[388506258,1759222259439,-500.0,0.00019995,2]
[388506259,1759222259448,-500.0,0.00019995,2]
[388506260,1759222259457,-3860.82,0.00019995,2]
[388506261,1759222259467,-500.0,0.00019995,2]
[388506262,1759222259476,-7985.35,0.00019995,2]
[388506263,1759222259486,-500.0,0.00019995,2]
[388506264,1759222259495,-869.21,0.00019995,2]
[388506265,1759222259504,-500.0,0.00019995,2]
[388506266,1759222259514,-500.0,0.00019995,2]
[388506267,1759222259523,-500.0,0.00019995,2]
[388506268,1759222259533,-500.0,0.00019995,2]
[388506269,1759222259542,-500.0,0.00019995,2]
[388506270,1759222259552,-3375.46,0.00019995,2]
[388506271,1759222259562,-500.0,0.00019995,2]
[388506272,1759222259571,-500.0,0.00019995,2]
[388506273,1759222259580,-500.0,0.00019995,2]
[388506274,1759222259590,-500.0,0.00019995,2]
[388506275,1759222259599,-500.0,0.00019995,2]
[388506276,1759222259608,-4756.9,0.00019995,2]
[388506277,1759222259618,-500.0,0.00019995,2]
[388506278,1759222259627,-4617.98,0.00019995,2]
[388506279,1759222259637,-500.0,0.00019995,2]
[388506280,1759222259646,-676.86,0.00019995,2]
[388506281,1759222259655,-500.0,0.00019995,2]
[388506282,1759222259664,-500.0,0.00019995,2]
[388506283,1759222259674,-500.0,0.00019995,2]
[388506284,1759222259684,-3734.53,0.00019995,2]
[388506285,1759222259693,-500.0,0.00019995,2]
[388506286,1759222259703,-500.0,0.00019995,2]
[388506287,1759222259713,-3497.18,0.00019995,2]
[388506288,1759222259722,-500.0,0.00019995,2]
[388506289,1759222259882,-500.0,0.00019995,2]
[388506290,1759222259893,-526.24169639,0.00019995,2]
[388506291,1759222259902,-1115.89,0.00019995,2]
[388506292,1759222259912,-500.0,0.00019995,2]
[388506293,1759222259921,-500.0,0.00019995,2]
[388506294,1759222259931,-500.0,0.00019995,2]
[388506295,1759222259940,-500.0,0.00019995,2]
[388506296,1759222259948,-500.0,0.00019995,2]
[388506297,1759222259958,-4337.72,0.00019995,2]
[388506298,1759222259967,-500.0,0.00019995,2]
[388506299,1759222259977,-500.0,0.00019995,2]
[388506300,1759222259986,-500.0,0.00019995,2]
[388506301,1759222259995,-3688.91,0.00019995,2]
[388506302,1759222260004,-500.0,0.00019995,2]
[388506303,1759222260013,-500.0,0.00019995,2]
[388506304,1759222260023,-500.0,0.00019995,2]
[388506305,1759222260031,-500.0,0.00019995,2]
[388506306,1759222260041,-2568.97,0.00019995,2]
[388506307,1759222260050,-500.0,0.00019995,2]
[388506308,1759222260059,-500.0,0.00019995,2]
[388506309,1759222260070,-2487.27,0.00019995,2]
[388506310,1759222260079,-500.0,0.00019995,2]
[388506311,1759222260088,-3107.18,0.00019995,2]
[388506312,1759222260097,-500.0,0.00019995,2]
[388506313,1759222260106,-349.79634847,0.00019995,2]
[388506314,1759222260115,-500.0,0.00019995,2]
[388506315,1759222260124,-500.0,0.00019995,2]
[388506316,1759222260133,-3176.02,0.00019995,2]
[388506317,1759222260143,-500.0,0.00019995,2]
[388506318,1759222260152,-1068.71,0.00019995,2]
[388506319,1759222260161,-500.0,0.00019995,2]
[388506320,1759222260171,-400.56824953,0.00019995,2]
[388506321,1759222260180,-500.0,0.00019995,2]
[388506322,1759222260190,-500.0,0.00019995,2]
[388506323,1759222260200,-500.0,0.00019995,2]
[388506324,1759222260208,-3032.11,0.00019995,2]
[388506325,1759222260217,-500.0,0.00019995,2]
[388506326,1759222260226,-2406.29,0.00019995,2]
[388506327,1759222260235,-500.0,0.00019995,2]
[388506328,1759222260244,-500.0,0.00019995,2]
[388506329,1759222260253,-500.0,0.00019995,2]
[388506330,1759222260262,-1058.43,0.00019995,2]
[388506331,1759222260271,-500.0,0.00019995,2]
[388506332,1759222260280,-500.0,0.00019995,2]
[388506333,1759222260289,-3434.13,0.00019995,2]
[388506334,1759222260299,-500.0,0.00019995,2]
[388506335,1759222260307,-500.0,0.00019995,2]
[388506336,1759222260316,-513.6,0.00019995,2]
[388506337,1759222260325,-500.0,0.00019995,2]
[388506338,1759222260334,-2850.66,0.00019995,2]
[388506339,1759222260343,-500.0,0.00019995,2]
[388506340,1759222260353,-590.79,0.00019995,2]
[388506341,1759222260362,-500.0,0.00019995,2]
[388506342,1759222260372,-3854.7,0.00019995,2]
[388506343,1759222260381,-500.0,0.00019995,2]
[388506344,1759222260392,-500.0,0.00019995,2]
[388506345,1759222260401,-503.65,0.00019995,2]
[388506346,1759222260410,-500.0,0.00019995,2]
[388506347,1759222260419,-500.0,0.00019995,2]
[388506348,1759222260428,-1680.61,0.00019995,2]
[388506349,1759222260436,-299.13171675,0.00019995,2]
[388506350,1759222260445,-500.0,0.00019995,2]
[388506351,1759222260454,-819.16,0.00019995,2]
[388506352,1759222260463,-501.62791952,0.00019995,2]
[388506353,1759222260472,-500.0,0.00019995,2]
[388506354,1759222260482,-578.37287863,0.00019995,2]
[388506355,1759222260490,-500.0,0.00019995,2]
[388506356,1759222260499,-5549.86,0.00019995,2]
[388506357,1759222260508,-500.0,0.00019995,2]
[388506358,1759222260517,-500.0,0.00019995,2]
[388506359,1759222260526,-500.0,0.00019995,2]
[388506360,1759222260535,-1058.06,0.00019995,2]
[388506361,1759222260544,-1058.06,0.00019995,2]
[388506362,1759222260553,-1050.89,0.00019995,2]
[388506363,1759222260562,-1050.89,0.00019995,2]
[388506364,1759222260570,-151.0,0.00019996,2]
[388506365,1759222260579,-500.0,0.00019996,2]
[388506366,1759222260588,-1313.79,0.00019996,2]
[388506367,1759222260597,-500.0,0.00019996,2]
[388506368,1759222260605,-500.0,0.00019996,2]
[388506369,1759222260614,-2993.72,0.00019996,2]
[388506370,1759222260623,-1578.15,0.00019996,2]
[388506371,1759222260632,-401.90586367,0.00019996,2]
[388506372,1759222260642,-773.55,0.00019996,2]
[388506373,1759222260650,-500.0,0.00019996,2]
[388506374,1759222260659,-3413.38,0.00019996,2]
[388506375,1759222260672,-500.0,0.00019996,2]
[388506376,1759222260681,-500.0,0.00019996,2]
[388506377,1759222260690,-500.0,0.00019996,2]
[388506378,1759222260698,-778.15,0.00019996,2]
[388506379,1759222260707,-580.27,0.00019996,2]
[388506380,1759222260716,-1024.14,0.00019996,2]
[388506381,1759222260725,-1443.78,0.00019996,2]
[388506382,1759222260733,-1322.63,0.00019996,2]
[388506383,1759222260744,-2746.11,0.00019996,2]
[388506384,1759222260754,-500.0,0.00019996,2]
[388506385,1759222260765,-500.0,0.00019996,2]
[388506386,1759222260774,-500.0,0.00019996,2]
[388506387,1759222260783,-500.0,0.00019996,2]
[388506388,1759222260792,-3669.77,0.00019996,2]
[388506389,1759222260801,-500.0,0.00019996,2]
[388506390,1759222260810,-538.16,0.00019996,2]
[388506391,1759222260819,-403.35435663,0.00019996,2]
[388506392,1759222260828,-675.56,0.00019996,2]
[388506393,1759222260837,-603.53,0.00019996,2]
[388506394,1759222260846,-500.0,0.00019996,2]
[388506395,1759222260855,-500.0,0.00019996,2]
[388506396,1759222260864,-500.0,0.00019996,2]
[388506397,1759222260873,-888.2,0.00019996,2]
[388506398,1759222260882,-1220.74,0.00019996,2]
[388506399,1759222260891,-500.0,0.00019996,2]
[388506400,1759222260900,-1812.93,0.00019996,2]
[388506401,1759222260909,-500.0,0.00019996,2]
[388506402,1759222260917,-541.74322209,0.00019996,2]
[388506403,1759222260926,-2502.19,0.00019996,2]
[388506404,1759222260935,-500.0,0.00019996,2]
[388506405,1759222260945,-500.0,0.00019996,2]
[388506406,1759222260954,-500.0,0.00019996,2]
[388506407,1759222260962,-500.0,0.00019996,2]
[388506408,1759222260971,-2215.06,0.00019996,2]
[388506409,1759222260980,-500.0,0.00019996,2]
[388506410,1759222260989,-500.0,0.00019996,2]
[388506411,1759222260998,-500.0,0.00019996,2]
[388506412,1759222261008,-500.0,0.00019996,2]
[388506413,1759222261017,-500.0,0.00019996,2]
[388506414,1759222261025,-500.0,0.00019996,2]
[388506415,1759222261036,-507.42,0.00019996,2]
[388506416,1759222261049,-500.0,0.00019996,2]
[388506417,1759222261059,-500.0,0.00019996,2]
[388506418,1759222261068,-1785.01,0.00019996,2]
[388506419,1759222261077,-500.0,0.00019996,2]
[388506420,1759222261086,-1942.66,0.00019996,2]
[388506421,1759222261095,-423.50849958,0.00019996,2]
[388506422,1759222261103,-500.0,0.00019996,2]
[388506423,1759222261113,-500.0,0.00019996,2]
[388506424,1759222261122,-500.0,0.00019996,2]
[388506425,1759222261131,-2919.48,0.00019996,2]
[388506426,1759222261141,-500.0,0.00019996,2]
[388506427,1759222261150,-3296.02,0.00019996,2]
[388506428,1759222261159,-500.0,0.00019996,2]
[388506429,1759222261169,-982.74,0.00019996,2]
[388506430,1759222261177,-1545.76,0.00019996,2]
[388506431,1759222261186,-582.71,0.00019996,2]
[388506432,1759222261195,-500.0,0.00019996,2]
[388506433,1759222261204,-500.0,0.00019996,2]
[388506434,1759222261213,-500.0,0.00019996,2]
[388506435,1759222261222,-2475.84,0.00019996,2]
[388506436,1759222261232,-500.0,0.00019996,2]
[388506437,1759222261241,-500.0,0.00019996,2]
[388506438,1759222261249,-538.97549551,0.00019996,2]
[388506439,1759222261258,-569.04,0.00019996,2]
[388506440,1759222261267,-1084.84,0.00019996,2]
[388506441,1759222261276,-1982.23,0.00019996,2]
[388506442,1759222261285,-500.0,0.00019996,2]
[388506443,1759222261294,-500.0,0.00019996,2]
[388506445,1759222261302,-500.0,0.00019996,2]
[388506446,1759222261312,-1239.42,0.00019996,2]